Cogmind - Beta 9.6 @@@ ROGUE MODE // 2020.05.09 @ 16:12:50 Player: Teratos Result: Self-destructed Performance ------------- Evolutions (1) 500 Regions Visited (2) 400 Robots Destroyed (21) 105 Value Destroyed (285) 285 Prototype IDs (0) 0 Alien Tech Used (0) 0 Bonus (0) 0 TOTAL SCORE: 1290 Bonus ------- None Cogmind --------- Core Integrity 344/400 Matter 17/400 Energy 160/160 System Corruption 0% Temperature Cool (4) Movement Rolling (100) Location -9/Materials Parts ------- > --- POWER (1) -------- Light Nuclear Core > --- PROPULSION (2) --- Compact Wheel Compact Wheel > --- UTILITY (4) ------ Small Matter Pod Small Matter Pod > --- WEAPON (2) ------- Rocket Launcher > --- INVENTORY (4) ---- Assault Rifle Rocket Launcher Rocket Launcher Rocket Launcher Peak State ------------ > --- POWER ------------ Ion Engine > --- PROPULSION ------- Wheel Compact Wheel > --- UTILITY ---------- Hardened Light Armor Plating Hardened Light Armor Plating > --- WEAPON ----------- Rocket Launcher Rocket Launcher > --- INVENTORY -------- Assault Rifle Light Assault Rifle Rocket Launcher Rocket Launcher [Rating: 11] Favorites ----------- Power Ion Engine Engine Ion Engine Power Core Light Nuclear Core Propulsion Compact Wheel Wheel Compact Wheel Utility Small Matter Pod Storage Small Matter Pod Protection Hardened Light Armor Plating Weapon Rocket Launcher Ballistic Gun Light Assault Rifle Launcher Rocket Launcher Build | -11 -10 -9 ------- Run | Scr Mat Mat Slots Evolved 2 | . . 2 Power . | . . . Propulsion . | . . . Utility 2 | . . 2 Weapon . | . . . Parts Attached 16 | 6 6 4 Power 2 | 1 . 1 Engine 1 | 1 . . Core 1 | . . 1 Reactor . | . . . Propulsion 4 | 2 . 2 Treads . | . . . Leg . | . . . Wheel 4 | 2 . 2 Hover . | . . . Flight . | . . . Utility 5 | 1 4 . Device . | . . . Storage 3 | 1 2 . Processor . | . . . Hackware . | . . . Protection 2 | . 2 . Artifact . | . . . Weapon 5 | 2 2 1 Energy Gun . | . . . Energy Cannon . | . . . Ballistic Gun 2 | 2 . . Ballistic Cannon . | . . . Launcher 3 | . 2 1 Special Weapon . | . . . Impact Weapon . | . . . Slashing Weapon . | . . . Piercing Weapon . | . . . Special Melee Weapon . | . . . Unidentified Prototypes . | . . . Parts Lost . | . . . Power . | . . . Propulsion . | . . . Utility . | . . . Weapon . | . . . Highest Loss Streak . | . . . Average Slot Usage (%) 78 | . 94 63 Engine 6 | . 14 . Core 5 | . . 11 Wheel 23 | . 28 19 Storage 17 | . 13 22 Protection 4 | . 9 . Ballistic Gun 1 | . 3 . Launcher 17 | . 24 11 Naked Turns . | . . . Heaviest Build 23 | 12 23 11 Greatest Support 32 | 26 26 32 Greatest Overweight (x) 3 | . . 3 Average Overweight (x) . | . . . Largest Inventory Capacity 6 | 6 6 4 Average Capacity 4 | 5 4 4 Most Carried 4 | . 4 4 Average Carried 3 | . 3 3 Final Capacity 6 | 6 4 4 Final Carried 4 | . 4 4 Class Distribution -------------------- 100% | Mutant Dominant Class ---------------- Mutant | -10/Materials Mutant | -9/Materials Resources | -11 -10 -9 ----------- Run | Scr Mat Mat Matter Collected 324 | 276 48 . Remotely . | . . . Salvage Created 252 | 75 158 19 Parts 28 | 5 17 6 Haulers Intercepted . | . . . Recyclers Shooed 1 | 1 . . Parts Field Recycled . | . . . Retrieved Matter . | . . . Parts Self-Destructed . | . . . Prevented . | . . . Kills | -11 -10 -9 ------- Run | Scr Mat Mat Combat Hostiles Destroyed 12 | . 8 4 AOE 12 | . 8 4 Classes Destroyed 8 | 2 6 . Worker 1 | . 1 . Builder 3 | . 3 . Tunneler 1 | 1 . . Recycler 2 | 1 1 . Operator 1 | . 1 . Watcher 1 | . 1 . Swarmer 10 | . 6 4 Grunt 2 | . 2 . Best Kill Streak 10 | 2 10 4 Combat Bots Only 5 | . 5 4 Max Kills in Single Turn 4 | 1 4 2 Gunslinging . | . . . Exploded 3 | . 3 2 Melee . | . . . Uniques/NPCs Destroyed . | . . . Combat | -11 -10 -9 -------- Run | Scr Mat Mat Damage Taken 297 | . 104 193 Core 73 | . 17 56 Absorbed by Shields . | . . . Core Remaining (%) 96 | 100 93 . Volleys Fired 17 | 4 8 5 Largest 2 | 2 2 1 Hottest 66 | 40 66 33 Shots Fired 29 | 8 16 5 Gun 8 | 8 . . Cannon . | . . . Launcher 21 | . 16 5 Special . | . . . Kinetic 8 | 8 . . Thermal . | . . . Explosive 21 | . 16 5 Electromagnetic . | . . . Robot Hit Streak 7 | 7 1 . Robot Miss Streak 3 | . 3 2 Penetration Max . | . . . Secondary Targets . | . . . Shots Hit Robots 8 | 7 1 . Core Hits 33 | 4 22 7 Critical Hits . | . . . Critical Kills . | . . . Critical Parts Destroyed . | . . . Melee Attacks . | . . . Impact . | . . . Slashing . | . . . Piercing . | . . . Sneak Attacks . | . . . Combat Hostiles . | . . . Follow-up Attacks . | . . . Damage Inflicted 1334 | 68 900 366 Guns 68 | 68 . . Cannons . | . . . Explosions 1266 | . 900 366 Melee . | . . . Ramming . | . . . Kinetic 68 | 68 . . Thermal . | . . . Explosive 1266 | . 900 366 Electromagnetic . | . . . Impact . | . . . Slashing . | . . . Piercing . | . . . Highest Corruption . | . . . Average Corruption . | . . . Corruption Purged . | . . . Overload Shots . | . . . Overflow Damage 8 | . 8 . Projectiles . | . . . Explosions 8 | . 8 . Melee . | . . . Knockbacks . | . . . Impact . | . . . Kinetic . | . . . Secondary . | . . . Self-Inflicted Damage 104 | . . 104 Shots 3 | . . 3 Rammed . | . . . Targets Rammed . | . . . Kicked . | . . . Crushed . | . . . Highest Temperature 72 | . 72 4 Average Temperature 20 | . 21 4 Received Heat Transfer 18 | . . 18 Siege Activations . | . . . Robots Corrupted . | . . . Combat Hostiles . | . . . Parts Fried . | . . . Impact Corruptions . | . . . Robots Melted . | . . . Combat Hostiles . | . . . Parts Melted . | . . . Heat Transferred . | . . . Parts Sabotaged . | . . . Parts Stolen . | . . . Parts Stripped . | . . . Power Chain Reactions . | . . . Missiles Intercepted . | . . . Alert | -11 -10 -9 ------- Run | Scr Mat Mat Peak Influence 308 | 10 308 250 Average Influence 170 | 4 189 211 Maximum Alert Level 1 | . 1 1 Low Security (%) 42 | 100 41 23 Level 1 57 | . 58 76 Level 2 . | . . . Level 3 . | . . . Level 4 . | . . . Level 5 . | . . . High Security . | . . . Max Security . | . . . Squads Dispatched 1 | . 1 . Investigation . | . . . Extermination . | . . . Reinforcement 1 | . 1 . Assault . | . . . Garrison . | . . . Intercept . | . . . Construction Impeded . | . . . Haulers Reinforced . | . . . Stealth | -11 -10 -9 --------- Run | Scr Mat Mat Distress Signals . | . . . Communications Jammed . | . . . Distress Signals . | . . . Times Spotted 14 | . 9 5 Peak Tracking Total 4 | . 3 4 Tactical Retreats . | . . . Traps | -11 -10 -9 ------- Run | Scr Mat Mat Traps Triggered . | . . . Indirectly . | . . . Trap Hack Attempts . | . . . Triggered . | . . . Disarmed . | . . . Reprogrammed . | . . . Reused . | . . . Traps Extracted . | . . . Installed . | . . . Triggered . | . . . Machines | -11 -10 -9 ---------- Run | Scr Mat Mat Machines Disabled 5 | . 4 1 Max in Single Turn 2 | . 2 1 Machines Sabotaged . | . . . Garrisons Compromised . | . . . Overloaded Fab Kills . | . . . Fab Network Shutdowns . | . . . Hacking | -11 -10 -9 --------- Run | Scr Mat Mat Machines Accessed . | . . . Terminals . | . . . Fabricators . | . . . Repair Stations . | . . . Recycling Units . | . . . Scanalyzers . | . . . Garrison Access . | . . . Total Hacks . | . . . Successful . | . . . Failed . | . . . Catastrophic . | . . . Database Lockouts . | . . . Manual . | . . . Terminals . | . . . Fabricators . | . . . Repair Stations . | . . . Recycling Units . | . . . Scanalyzers . | . . . Garrison Access . | . . . Terminal Hacks . | . . . Fabricator Hacks . | . . . Repair Station Hacks . | . . . Recycling Unit Hacks . | . . . Scanalyzer . | . . . Garrison Access Hacks . | . . . Unauthorized Hacks . | . . . Terminals . | . . . Fabricators . | . . . Repair Stations . | . . . Recycling Units . | . . . Scanalyzers . | . . . Garrison Access . | . . . Data Cores Recovered . | . . . Used . | . . . Hacking Detections . | . . . Full Trace Events . | . . . Feedback Events . | . . . Feedback Blocked . | . . . Robot Schematics Acquired . | . . . Robots Built . | . . . Matter . | . . . Time . | . . . Total Robot Build Rating . | . . . Part Schematics Acquired . | . . . Parts Built . | . . . Matter . | . . . Time . | . . . Total Part Build Rating . | . . . Parts Repaired . | . . . Time . | . . . Parts Recycled . | . . . Recycled Matter . | . . . Retrieved Matter . | . . . Retrieved Components . | . . . Parts Scanalyzed . | . . . Part Schematics Acquired . | . . . Parts Damaged . | . . . Bothacking | -11 -10 -9 ------------ Run | Scr Mat Mat Used RIF Installer . | . . . Robots Hacked . | . . . Non-combat . | . . . Combat . | . . . Robot Hacks Applied . | . . . Relay Couplers Released . | . . . Robots Rewired . | . . . Allies Hacked . | . . . Hacks Repelled . | . . . Allies | -11 -10 -9 -------- Run | Scr Mat Mat Total Allies . | . . . Largest Group . | . . . Highest-Rated Group . | . . . Highest-Rated Ally . | . . . Total Orders . | . . . Ally Attacks . | . . . Total Damage . | . . . Kills . | . . . Allies Corrupted . | . . . Allies Melted . | . . . Intel | -11 -10 -9 ------- Run | Scr Mat Mat Robot Analysis Total . | . . . Derelict Logs Recovered . | . . . Drone Launches . | . . . Drone Recoveries . | . . . Exploration | -11 -10 -9 ------------- Run | Scr Mat Mat Turns Passed 391 | 60 160 171 Spaces Moved 340 | 53 137 150 Core 25 | 18 . 7 Treads . | . . . Legs . | . . . Wheels 315 | 35 137 143 Hover . | . . . Flight . | . . . Fastest Speed 50 | 50 90 90 Average Speed 92 | 76 90 101 Slowest Speed 200 | 90 90 200 Overloaded Moves . | . . . Propulsion Burnouts . | . . . Robots Hopped . | . . . Cave-ins Triggered . | . . . Exploration Rate (%) 18 | 4 38 12 Regions Visited 2 Branch Regions . Pre-discovered Areas . | . . . Known Exits Taken . | . . . Unknown Exits Taken 2 | 1 1 . Scrap Searched . | . . . Spaces Dug . | . . . Terrain Destroyed 148 | . 93 55 Melee . | . . . Projectile . | . . . AOE 148 | . 93 55 Actions | -11 -10 -9 --------- Run | Scr Mat Mat Total 384 | 62 157 165 Wait . | . . . Move 338 | 52 136 150 Hop . | . . . Pick Up 2 | . 2 . Fast Attach 15 | 6 6 3 Attach 1 | . . 1 Detach 4 | . 2 2 Swap . | . . . Drop 7 | . 3 4 Fire 17 | 4 8 5 Melee . | . . . Ram . | . . . Kick . | . . . Crush . | . . . Escape Stasis . | . . . Rewire . | . . . Trap . | . . . Miscellaneous . | . . . Route ------- -11/Scrapyard -10/Materials -9/Materials (discovered 1 exit: [*Min]) History --------- Turn | Location | Event 6 | -11/Scrapyard | Discovered new exit (range 14) 61 | -11/Scrapyard | Entered Materials 205 | -10/Materials | Discovered new exit (range 15) 221 | -10/Materials | Entered another Materials area 221 | -9/Materials | Evolved 2 slots: Utility x2 317 | -9/Materials | Build established: Mutant 388 | -9/Materials | Discovered new exit (range 6) 392 | -9/Materials | Self-destructed Last Messages --------------- 00294_ The unstable cave ceiling collapses. 00294_ Acquired Com. Wheel. 00296_ K-01 Serf collects debris. 00299_ U-05 Engineer lays Concrete. 00300_ K-01 Serf collects debris. 00301_ U-05 Engineer lays Concrete. 00303_ R-06 Scavenger collects Wheel. 00303_ K-01 Serf collects debris. 00304_ U-05 Engineer lays Concrete. 00306_ K-01 Serf collects debris. 00307_ U-05 Engineer lays Concrete. 00307_ R-06 Scavenger collects Com. Wheel. 00308_ U-05 Engineer lays Concrete. 00313_ K-01 Serf collects debris. 00315_ U-05 Engineer lays Concrete. 00317_ K-01 Serf collects debris. 00368_ U-05 Engineer lays Concrete. 00375_ K-01 Serf collects debris. 00388_ EXIT=FOUND 00388_ Machine disabled. Map ----- +----------------------------------------------------+ | ????????????????????????????????????????? | | ????????????????????????????????????????? | | ????????????????????????????????????????? | | ????????????????????????????????????????? | | ????????????????????????????????????????? | | ????????????????????????????????????????? | | ????????????????????????????????????????? | | ????????????????????????????????????????? | | ????????????????????????????????????????? | | ????????????????????????????????????????? | | ?????????????? ????????????????????????? | | ???????????? ???? ???????????????????? | | ???????????# **???? ??????????????????? | | ???????? ?## **???? ???????????????????? | | ??????# ? + **??? ???????????????????? | | ??????# # ??? ???????????????????? | | ????+## #?? ????????????????????? | | ????? # ## ????????????????????? | | ??????? * ????????????????????? | | ???????? Y ?????????????????????? | | ????????? ?????????????????????? | | ??????????# #?????????????????????? | | ???????????# ###???????????????????? | | ???????????# ########???????? #??? | | ???????????# r ####### ###? | | ???????????# @ | | ???????????# ##### | | ???????????# ######## | | ??????????# # # #############? | | ??????????# #= [ # #########????? | | ??????????# < #= [ # # #????? | | ??????????# #=[[ / + #????? | | ??????????#"" # # #????? | | ??????????##"|||"######## ############ | | ?########??##"""## # | | ?#//!!!!#???####?### | | ?#//!!!!#????????# # ############ | | ?# #????????# #??????????? | | ???#### ########### #??????????? | | ??????# ##??????????? | | ??????# #???????????? | | ?########+#########+# ###???????????? | | ?# ] # #?????????????? | | ?# # """ """ !#?????????????? | | ?# # """ """ #?????????????? | | ?# | # """ """ #?????????????? | | ?# # =#?????????????? | | ?##########################?????????????? | | | | | +----------------------------------------------------+ Best States ------------- Heat Dissipation 28 Energy Generation 14 Energy Capacity 250 Matter Stores 300 Matter Capacity 400 Sight Range 16 Terrain Scan Density 10 Armor Coverage 300 Evasion (%) 50 Item Schematics ----------------- None Robot Schematics ------------------ None Fabricated ------------ Nothing Alien Tech Used ----------------- None Achievements -------------- None Challenges ------------ None Game ------ Seed OmegaRestorationMachine Manual? 0 Play Time 00:05:50 Cumulative 10.8 hours Start 2020.05.03 @ 16:51:35 End 2020.05.09 @ 16:12:50 Sessions 3 Manual Loads 0 Difficulty Rogue Special Mode None Game No. 24 Rogue 24 Adventurer 0 Explorer 0 Win Type - Total 0 Types 0/0/0/0/0/0/0 Lore% 2 Gallery% 10 Achievement% 9 Wizard Run 0 Options --------- ASCII 0 Keyboard 0 Movement Mouse Keybinds 0 Fullscreen 1 Font 18/SmallcapsGlow Map View 76x50 Tactical HUD 1 Map Filters NONE Filters NONE Steam 1 RUN: 364841fc-fcf1-47cf-8f65-4124052570b4